bitfinex/quotes_SOLUSD_20240827
["timestamp","ask_amount","ask_price","bid_price","bid_amount"]
[1724753397612,6.4085,156.05,156.0,131.44200328]
[1724753398199,6.4086,156.04,156.0,131.44200328]
[1724753398907,45.12549,156.08,156.0,131.44200328]
[1724753399103,6.4081,156.06,156.0,131.44200328]
[1724753399307,6.4077,156.07,156.01,7.69159504]
[1724753399505,45.0,156.08,156.02,1.2816891]
[1724753399506,6.4069,156.08,156.02,1.2816891]
[1724753399722,6.4081,156.06,156.01,16.0243]
[1724753399904,439.07243595,156.11,156.01,16.0243]
[1724753400103,65.12549,156.1,156.01,16.0243]
[1724753400307,397.85490967,156.11,156.03,16.0216]
[1724753400505,397.85490967,156.11,156.04,1.2814997]
[1724753400834,423.05723595,156.11,156.02,23.0248]
[1724753401010,16.55490967,156.11,156.03,1.28151948]
[1724753401325,1.11150967,156.11,156.02,32.6392]
[1724753401904,6.4074,156.07,156.02,32.6392]
[1724753402105,26.31383595,156.11,156.02,32.6392]
[1724753402106,6.4078,156.06,156.02,16.6157]
[1724753402708,6.4078,156.06,156.0,137.85220328]
[1724753402903,26.31383595,156.11,156.01,1.28169239]
[1724753403111,6.4069,156.09,156.02,6.4093]
[1724753403324,6.4069,156.09,156.03,6.4088]
[1724753403508,6.4069,156.08,156.03,1.2815559]
[1724753404825,1.11150967,156.11,156.02,1.28153891]
[1724753405034,1.11150967,156.11,156.02,26.48386519]
[1724753405035,7.51720967,156.11,156.02,26.48386519]
[1724753405246,1.11150967,156.11,156.04,57.46622628]
[1724753405422,1.11150967,156.11,156.06,6.4076]
[1724753405614,1.11150967,156.11,156.07,1.28125072]
[1724753405819,1.11150967,156.11,156.08,1.28123175]
[1724753406340,7.51720967,156.11,156.08,1.28123175]
[1724753406653,7.51720967,156.11,156.04,57.46622628]
[1724753407139,6.4062,156.1,156.04,32.2639]
[1724753408848,6.4062,156.1,156.04,38.6723]
[1724753409518,6.4057,156.11,156.04,32.2639]
[1724753409851,15.7864,156.14,156.05,1.28125835]
[1724753410632,6.4053,156.12,156.06,6.4077]
[1724753410833,6.4061,156.1,156.04,38.6721]
[1724753411050,6.4058,156.11,156.04,32.2639]
[1724753411219,6.4054,156.12,156.05,1.28127886]
[1724753411551,6.4049,156.13,156.05,1.28127886]
[1724753411754,6.4049,156.13,156.07,6.4073]
[1724753411934,6.4054,156.12,156.08,1.28118552]
[1724753412133,6.4054,156.12,156.04,57.46622628]
[1724753413054,6.4054,156.12,156.06,6.4074]
[1724753413227,6.4054,156.12,156.07,1.28118525]
[1724753413429,6.4054,156.12,156.06,6.4074]
[1724753414062,6.4054,156.12,156.07,1.28118628]
[1724753414258,15.7864,156.14,156.06,6.4074]
[1724753414549,6.4069,156.08,156.04,32.2639]
[1724753414751,15.7864,156.14,156.04,32.2639]
[1724753414752,6.4061,156.1,156.04,32.2639]
[1724753415075,6.4061,156.1,156.05,1.28134889]
[1724753415228,15.7864,156.14,156.07,16.0182]
[1724753415542,6.1059,156.16,156.08,7.68808478]
[1724753415745,20.0,156.15,156.08,7.68808478]
[1724753416647,6.405,156.13,156.08,7.68808478]
[1724753417063,17.06382377,156.18,156.08,26.48351106]
[1724753417224,17.06382377,156.18,156.03,38.2478]
[1724753417225,1.11582377,156.18,156.11,16.0142]
[1724753417537,6.4024,156.2,156.12,1.28067263]
[1724753417846,6.4017,156.21,156.14,6.4044]
[1724753418048,6.4017,156.21,156.15,1.28057578]
[1724753418347,6.4017,156.21,156.15,7.68457578]
[1724753418925,6.4017,156.21,156.16,1.28056143]
[1724753419336,7.51598173,156.24,156.16,1.28056143]
[1724753419537,57.5696,156.3,156.18,15.0059]
[1724753419750,6.3996,156.26,156.19,7.68241529]
[1724753419949,57.5696,156.3,156.2,6.4019]
[1724753420255,6.3996,156.26,156.2,6.4019]
[1724753420632,6.3996,156.26,156.19,6.4023]
[1724753420937,6.3996,156.26,156.2,7.6820817]
[1724753421334,57.5696,156.3,156.21,6.4016]
[1724753421335,21.5742,156.3,156.21,6.4016]
[1724753421651,21.5742,156.3,156.22,1.28010199]
[1724753421851,21.5742,156.3,156.18,15.0059]
[1724753421852,25.20232628,156.26,156.18,15.0059]
[1724753422056,6.402,156.2,156.14,16.5036]
[1724753422353,25.20232628,156.22,156.14,16.5036]
[1724753422536,6.402,156.2,156.14,16.5036]
[1724753422732,6.4032,156.18,156.11,16.0138]
[1724753423144,6.4037,156.16,156.11,16.0138]
[1724753423340,6.4031,156.18,156.11,22.4195]
[1724753423541,6.4034,156.17,156.11,22.4195]
[1724753423748,0.25098,156.19,156.1,16.5036]
[1724753423932,6.52859,156.18,156.11,6.4055]
[1724753424129,26.4032,156.17,156.12,1.28096639]
[1724753424429,6.4045,156.14,156.1,16.5036]
[1724753424635,6.4041,156.15,156.1,16.5036]
[1724753425056,26.4036,156.17,156.1,16.5036]
[1724753425233,26.4036,156.17,156.11,6.4056]
[1724753425556,26.4036,156.17,156.11,7.68644633]
[1724753426056,0.12549,156.18,156.12,6.4051]
[1724753426262,6.4034,156.17,156.11,1.28084633]
[1724753428056,6.4034,156.17,156.11,7.68634633]
[1724753428238,6.4034,156.17,156.08,31.5652873]
[1724753428239,6.4057,156.11,156.06,16.4791]
[1724753428444,6.4049,156.14,156.07,1.28113767]
[1724753428659,51.405,156.13,156.07,1.28113767]
[1724753429360,51.405,156.13,156.07,7.68843767]
[1724753431058,51.405,156.13,156.08,6.4069]
[1724753432059,51.405,156.13,156.09,1.28117535]
[1724753432450,6.4042,156.15,156.09,6.4065]
[1724753433236,6.4042,156.15,156.1,7.68713506]
[1724753433436,48.0173,156.2,156.1,7.68713506]
[1724753433437,15.6388,156.21,156.13,6.4049]
[1724753433747,6.4029,156.18,156.12,6.4052]
[1724753434066,6.4039,156.16,156.11,7.68635882]
[1724753434357,6.4033,156.17,156.11,7.68635882]
[1724753434858,6.4033,156.17,156.12,6.4053]
[1724753435058,6.4033,156.17,156.11,7.68635882]
[1724753435268,0.12549,156.16,156.06,16.4791]
[1724753435436,20.37647,156.16,156.06,16.4791]
[1724753436158,6.4049,156.13,156.07,6.407]
[1724753436356,6.4053,156.12,156.07,6.407]
[1724753437038,6.4049,156.13,156.07,6.407]
[1724753437239,0.12549,156.14,156.06,16.4791]
[1724753437543,20.50196,156.14,156.06,17.76042443]
[1724753437859,45.0,156.13,156.06,17.76042443]
[1724753438040,0.25098,156.12,156.06,17.76042443]
[1724753438666,6.4058,156.11,156.06,17.76042443]
[1724753438861,6.4073,156.08,156.02,16.638]
[1724753439161,6.407,156.08,156.02,16.638]
[1724753439363,6.4073,156.07,156.02,16.638]
[1724753439539,45.0,156.06,156.0,131.44200328]
[1724753439740,45.25098,156.06,156.0,131.44200328]
[1724753439970,0.12549,156.06,156.0,131.44200328]
[1724753440462,45.0,156.07,156.0,131.44200328]
[1724753440648,6.4078,156.06,156.0,131.44200328]
[1724753441257,51.65918,156.05,156.0,131.44200328]
[1724753441642,45.25098,156.05,156.0,131.44200328]
[1724753442340,45.25098,156.05,156.0,137.85220328]
[1724753442558,6.4081,156.06,156.0,137.85220328]
[1724753442754,6.4078,156.06,156.0,137.85220328]
[1724753443249,45.0,156.05,156.0,137.85220328]
[1724753443769,51.4082,156.05,156.0,131.44200328]
[1724753444676,45.0,156.05,156.0,137.85210328]
[1724753444965,45.0,156.05,156.0,131.44200328]
[1724753445385,51.4082,156.05,156.0,131.44200328]
[1724753445548,45.0,156.05,156.0,131.44200328]
[1724753446085,6.53359,156.06,156.0,131.44200328]
[1724753446375,15.5958,156.08,156.0,131.44200328]
[1724753446562,6.4073,156.08,156.01,1.28178927]
[1724753446759,6.4073,156.08,156.02,1.28153539]
[1724753447075,6.4074,156.07,156.02,1.28153539]
[1724753447367,6.4078,156.06,156.0,153.87720328]
[1724753447568,51.5652873,156.11,156.01,7.69134978]
[1724753447569,31.5652873,156.11,156.01,7.69134978]
[1724753447745,6.4077,156.07,156.01,1.28174978]
[1724753447947,6.4077,156.07,156.01,7.69144978]
[1724753448144,6.4084,156.05,156.01,1.28174978]
[1724753448346,41.30356555,156.09,156.01,1.28175735]
[1724753448570,6.4077,156.07,156.01,1.28175735]
[1724753449163,6.53249,156.08,156.01,1.28175735]
[1724753449345,45.41235555,156.11,156.02,16.0233]
[1724753449346,25.28686555,156.11,156.02,16.0233]
[1724753449543,0.12549,156.1,156.03,1.28159315]
[1724753449760,6.53179,156.1,156.03,7.69049315]
[1724753450154,6.4063,156.1,156.04,6.4083]
[1724753450362,6.4057,156.11,156.05,1.2814203]
[1724753450775,6.4057,156.11,156.04,22.2169]
[1724753450988,6.4069,156.09,156.04,15.8086]
[1724753451146,25.41235555,156.12,156.04,15.8086]
[1724753451344,25.28686555,156.1,156.0,147.03630328]
[1724753451573,25.28686555,156.08,156.0,147.03630328]
[1724753451764,45.25098,156.07,156.0,147.03630328]
[1724753452148,45.25098,156.07,156.0,131.44200328]
[1724753452847,0.25098,156.07,156.0,131.44200328]
[1724753453454,0.25098,156.07,156.01,1.28182554]
[1724753453650,20.12549,156.07,156.01,1.28182554]
[1724753453845,45.0,156.06,156.0,131.44200328]
[1724753454847,0.12549,156.07,156.01,7.69119538]
[1724753455052,6.407,156.08,156.01,7.69119538]
[1724753455279,6.4066,156.09,156.03,6.4087]
[1724753455463,6.4066,156.09,156.01,6.4094]
[1724753455992,6.4066,156.09,156.03,6.4089]
[1724753456274,387.3618,156.13,156.04,6.4085]
[1724753456485,6.4061,156.1,156.01,21.5136]
[1724753456775,6.4056,156.12,156.05,6.4082]
[1724753456975,6.4056,156.12,156.06,1.28129097]
[1724753457784,387.7049,156.13,156.07,6.4073]
[1724753457982,387.7049,156.13,156.08,1.13914373]
[1724753458164,33.00661154,156.16,156.08,1.13914373]
[1724753458481,0.41830156,156.15,156.03,0.12549]
[1724753458689,6.4049,156.14,156.07,6.407]
[1724753458852,0.41830156,156.13,156.07,6.407]
[1724753459578,0.41830156,156.13,156.08,6.4069]
[1724753459761,6.52999,156.14,156.07,6.407]
[1724753459966,0.41830156,156.13,156.08,6.4067]
[1724753460274,6.4041,156.15,156.08,6.4067]
[1724753460480,1.11584912,156.19,156.12,6.4052]
[1724753460687,6.5957,156.22,156.13,1.28085338]
[1724753460981,6.402,156.2,156.13,23.69715338]
[1724753461151,0.41830156,156.19,156.13,23.69715338]
[1724753461681,6.82070156,156.19,156.14,1.28065873]
[1724753462782,0.41830156,156.21,156.14,1.28065873]
[1724753462963,0.41830156,156.21,156.14,7.68505873]
[1724753463171,6.4021,156.2,156.14,1.28065873]
[1724753463358,6.4026,156.19,156.14,1.28065873]
[1724753463559,6.82110156,156.18,156.09,31.90379]
[1724753463888,6.4028,156.18,156.1,1.28078965]
[1724753464064,6.4028,156.18,156.11,0.12549]
[1724753464270,6.4028,156.18,156.11,1.40612205]
[1724753464569,0.41830156,156.2,156.14,6.4044]
[1724753464775,45.41830156,156.2,156.15,1.28061639]
[1724753464985,0.41830156,156.19,156.14,1.28063121]
[1724753465274,0.41830156,156.2,156.15,1.28063188]
[1724753465590,48.15584973,156.23,156.16,22.78550294]
[1724753465591,6.4008,156.23,156.16,22.78550294]
[1724753465784,6.4008,156.23,156.16,21.3794]
[1724753466486,6.4008,156.23,156.17,1.28030495]
[1724753466788,48.00533153,156.28,156.16,21.3794]
[1724753466789,35.9989,156.26,156.16,21.3794]
[1724753466972,6.4036,156.17,156.09,6.4062]
[1724753467279,6.4027,156.19,156.13,6.4049]
[1724753467472,31.61573153,156.22,156.14,6.4044]
[1724753467789,20.12549,156.21,156.12,16.0123]
[1724753467980,20.12549,156.21,156.1,31.61573153]
[1724753467981,6.4014,156.22,156.15,6.1779]
[1724753468283,6.4007,156.24,156.16,1.28040249]
[1724753468596,6.52629,156.23,156.16,17.28860249]
[1724753469373,0.12549,156.23,156.18,6.4026]
[1724753469687,0.12549,156.24,156.19,1.28029]
[1724753470064,6.4009,156.23,156.16,22.4116]
[1724753470380,16.0011,156.24,156.15,6.1779]
[1724753470581,65.37647,156.23,156.14,15.7051]
[1724753470763,65.50196,156.23,156.14,15.7051]
[1724753470965,16.0043,156.21,156.11,6.1779]
[1724753471163,65.25098,156.2,156.12,1.28077269]
[1724753471495,6.65338,156.2,156.12,1.28077269]
[1724753471861,6.4026,156.19,156.13,6.4048]
[1724753472061,6.4026,156.19,156.14,1.280593]
[1724753472261,6.4026,156.19,156.15,1.28052893]
[1724753472572,6.52769,156.2,156.15,1.28052893]
[1724753473391,6.52769,156.2,156.14,6.4044]
[1724753473573,6.4024,156.19,156.13,6.4048]
[1724753473778,6.4029,156.18,156.12,6.4053]
[1724753474293,6.4029,156.18,156.13,1.28065991]
[1724753474693,6.4029,156.18,156.12,6.4053]
[1724753474894,0.12549,156.19,156.11,28.5978]
[1724753475074,6.4037,156.16,156.11,22.1921]
[1724753475492,6.4037,156.16,156.12,1.28081699]
[1724753475703,0.12549,156.19,156.12,1.28081699]
[1724753475704,6.4033,156.17,156.12,1.28081699]
[1724753476529,0.12549,156.16,156.09,15.7051]
[1724753476671,6.4049,156.13,156.09,15.7051]
[1724753477593,6.4049,156.13,156.08,1.28106158]
[1724753477771,6.4049,156.13,156.07,12.9207]
[1724753479197,6.4053,156.12,156.07,6.5134]
[1724753480172,6.4059,156.11,156.06,16.0194]
[1724753480994,6.4053,156.12,156.06,22.4271]
[1724753481396,20.0,156.11,156.06,22.4271]
[1724753481601,6.4082,156.05,156.03,6.2608]
[1724753481806,0.12549,156.1,156.03,6.2608]
[1724753481979,45.25098,156.1,156.03,6.2608]
[1724753482179,20.0,156.09,156.04,1.28142447]
[1724753482703,6.407,156.08,156.03,6.2608]
[1724753483291,20.0,156.07,156.04,1.28143523]
[1724753483684,20.0,156.08,156.04,1.28143523]
[1724753484790,6.4074,156.07,156.04,1.28143523]
[1724753485094,26.407,156.08,156.03,6.2608]
[1724753485402,6.4073,156.07,156.03,6.2608]
[1724753486716,6.4073,156.07,156.03,7.54224313]
[1724753486901,26.407,156.08,156.03,7.54224313]
[1724753487199,26.407,156.08,156.03,13.95114313]
[1724753487581,26.407,156.08,156.03,12.6697]
[1724753488603,26.407,156.08,156.04,1.28136372]
[1724753488800,26.407,156.08,156.03,6.2608]
[1724753489197,26.407,156.08,156.04,1.28136498]
[1724753490008,26.407,156.08,156.03,12.6698]
[1724753490196,26.407,156.08,156.04,0.12549]
[1724753490693,20.0,156.08,156.04,0.12549]
[1724753491215,6.4058,156.11,156.06,6.4077]
[1724753491527,6.4058,156.11,156.04,87.82081344]
[1724753491528,6.4058,156.11,156.05,6.4081]
[1724753491709,6.4058,156.11,156.06,0.12549]
[1724753491882,1.11590848,156.15,156.04,86.53949205]
[1724753491883,6.4065,156.1,156.04,22.55509]
[1724753492084,6.4067,156.09,156.04,16.0213]
[1724753492300,6.407,156.08,156.05,1.28138754]
[1724753492692,6.407,156.08,156.04,1.28141617]
[1724753493005,6.4065,156.1,156.05,7.6893256]
[1724753493306,20.0,156.09,156.05,7.6893256]
[1724753494012,20.0,156.09,156.06,6.4076]
[1724753494185,20.0,156.1,156.07,7.68852844]
[1724753494397,20.0,156.1,156.08,1.28112428]
[1724753494592,6.405,156.13,156.08,1.28112428]
[1724753494818,6.4049,156.13,156.08,1.28112428]
[1724753495308,1.11590848,156.15,156.06,16.0186]
[1724753495511,1.11590848,156.15,156.07,1.28114809]
[1724753495512,6.4052,156.13,156.07,1.28114809]
[1724753495805,6.4051,156.13,156.08,1.28111156]
[1724753496010,26.4054,156.12,156.08,1.28111156]
[1724753496808,26.4054,156.12,156.09,1.28108038]
[1724753497006,26.4054,156.12,156.07,1.2810799]
[1724753497215,26.4054,156.12,156.08,1.28107992]
[1724753497398,20.0,156.12,156.08,1.28107992]
[1724753497803,20.0,156.13,156.08,23.99787992]
[1724753498002,20.0,156.13,156.08,22.7168]
[1724753498714,20.0,156.13,156.09,1.28096317]
[1724753499090,0.12549,156.12,156.07,1.28096446]
[1724753499291,6.4065,156.09,156.04,16.3099]
[1724753499796,20.0,156.08,156.04,16.3099]
[1724753501417,6.4065,156.09,156.04,16.3099]
[1724753501589,20.0,156.08,156.04,16.3099]
[1724753502218,26.4071,156.08,156.04,16.3099]
[1724753502722,26.4071,156.08,156.02,16.0227]
[1724753502903,26.4071,156.08,156.02,22.4318]
[1724753503403,0.12549,156.07,156.0,147.34460328]
[1724753503605,6.4081,156.06,156.0,153.75480328]
[1724753503787,20.0,156.05,156.01,1.28169869]
[1724753504530,26.4083,156.05,156.0,153.75480328]
[1724753505318,20.0,156.05,156.0,153.75480328]
[1724753505818,20.0,156.05,156.01,7.69140227]
[1724753506204,20.0,156.06,156.01,7.69140227]
[1724753507424,20.0,156.06,156.02,17.4296551]
[1724753507606,21.8258,156.11,156.05,6.4081]
[1724753507800,6.4061,156.11,156.05,6.4081]
[1724753508196,6.4061,156.11,156.06,1.28128235]
[1724753508504,6.4061,156.11,156.05,6.4081]
[1724753508712,6.4061,156.11,156.06,1.28121788]
[1724753509214,20.0,156.1,156.06,1.28121788]
[1724753510492,20.0,156.1,156.0,195.41900328]
[1724753510697,6.4073,156.08,156.02,6.409]
[1724753511105,6.53209,156.09,156.02,16.023]
[1724753511424,20.0,156.08,156.03,6.4089]
[1724753512110,26.4071,156.08,156.03,6.4089]
[1724753512312,26.4071,156.08,156.02,22.4323]
[1724753513827,20.0,156.08,156.02,22.4323]
[1724753514120,6.4075,156.07,156.02,22.4323]
[1724753514322,0.12549,156.09,156.03,6.4089]
[1724753514504,45.12549,156.1,156.03,6.4089]
[1724753514711,20.0,156.09,156.03,6.4089]
[1724753515736,6.407,156.08,156.03,6.4089]
[1724753516103,26.4066,156.09,156.04,6.4084]
[1724753516305,20.0,156.09,156.05,1.28131412]
[1724753516505,20.0,156.09,156.05,7.68941412]
[1724753517699,26.4065,156.09,156.04,22.55469]
[1724753519023,20.0,156.09,156.04,22.55469]
[1724753519217,20.0,156.09,156.05,1.28129526]
[1724753519416,20.0,156.09,156.05,7.68929526]
[1724753520223,26.4067,156.09,156.05,1.28129526]
[1724753520423,20.0,156.09,156.05,7.68939526]
[1724753521903,20.0,156.09,156.05,6.4081]
[1724753522324,20.0,156.09,156.06,1.28129564]
[1724753523414,6.4062,156.1,156.06,1.28129564]
[1724753525353,6.4065,156.09,156.05,6.4081]
[1724753525629,6.4065,156.09,156.04,22.55499]
[1724753525828,6.4062,156.1,156.05,6.53359]
[1724753526337,6.4062,156.1,156.06,1.28121806]
[1724753528937,6.4054,156.12,156.07,6.4073]
[1724753529235,20.0,156.11,156.08,1.28111666]
[1724753529820,20.0,156.11,156.06,16.0189]
[1724753530037,20.0,156.14,156.07,0.12549]
[1724753530535,6.4058,156.11,156.06,22.4266]
[1724753530745,6.4053,156.12,156.07,7.68841887]
[1724753530913,20.0,156.11,156.07,7.68841887]
[1724753531319,6.4069,156.08,156.03,22.4309]
[1724753533719,6.4066,156.09,156.04,1.28141804]
[1724753534441,20.0,156.11,156.04,6.4082]
[1724753534633,20.0,156.12,156.05,1.28141815]
[1724753534840,45.0,156.11,156.05,1.28141815]
[1724753535030,20.0,156.1,156.05,1.28141815]
[1724753535719,20.0,156.12,156.05,7.68951815]
[1724753535938,20.0,156.12,156.05,6.4081]
[1724753536817,6.4062,156.1,156.05,6.4081]
[1724753537029,20.0,156.09,156.05,6.4081]
[1724753538447,6.4069,156.08,156.03,16.022]
[1724753538623,6.4069,156.08,156.03,22.4309]
[1724753538830,6.4069,156.08,156.03,16.022]
[1724753540047,6.4074,156.07,156.03,16.022]
[1724753540248,6.4078,156.06,156.01,6.4097]
[1724753541129,6.4082,156.05,156.0,154.00289328]
[1724753542749,6.4082,156.05,156.0,153.87740328]
[1724753542953,6.4087,156.04,156.0,131.44200328]
[1724753543730,6.4082,156.05,156.01,1.28177711]
[1724753543944,20.0,156.04,156.01,1.28177711]
[1724753544339,26.4086,156.04,156.0,131.44200328]
[1724753545856,6.4081,156.06,156.01,1.28168376]
[1724753546036,20.0,156.05,156.02,1.2816288]
[1724753547252,20.0,156.05,156.0,137.85200328]
[1724753547749,20.0,156.05,156.01,1.28164566]
[1724753547939,6.4082,156.05,156.01,1.28164566]
[1724753549042,6.4086,156.04,156.0,131.44200328]
[1724753549551,6.409,156.04,156.0,131.44200328]
[1724753549929,6.4092,156.03,156.0,131.44200328]
[1724753550262,0.25098,156.06,156.0,131.44200328]
[1724753550263,6.4086,156.04,156.0,131.44200328]
[1724753551256,6.4082,156.05,156.01,1.28181035]
[1724753551452,6.4078,156.06,156.01,1.28181035]
[1724753551634,20.0,156.05,156.01,7.69141035]
[1724753552148,26.4082,156.05,156.01,1.28181035]
[1724753552463,26.4078,156.06,156.01,1.28181035]
[1724753554328,7.36299496,156.11,156.01,26.5490224]
[1724753554533,6.4068,156.09,156.03,6.4088]
[1724753554733,6.4068,156.09,156.04,1.28144087]
[1724753554936,6.407,156.08,156.04,1.28144087]
[1724753555341,6.4063,156.1,156.04,7.68994087]
[1724753555751,26.4066,156.09,156.04,7.68994087]
[1724753556660,20.0,156.09,156.04,1.28144087]
[1724753556866,20.0,156.1,156.04,1.28144087]
[1724753557346,6.4066,156.09,156.04,1.28144087]
[1724753557545,20.0,156.08,156.04,1.28144087]
[1724753557744,26.407,156.08,156.03,16.0225]
[1724753558649,26.407,156.08,156.03,22.4314]
[1724753558956,26.407,156.08,156.03,16.0225]
[1724753559154,6.407,156.08,156.03,16.0225]
[1724753559356,6.2468,156.11,156.03,22.4311]
[1724753559536,20.12549,156.1,156.03,22.4311]
[1724753559961,6.4067,156.09,156.03,22.4311]
[1724753560266,20.0,156.08,156.03,22.4311]
[1724753560638,20.0,156.08,156.04,1.28139133]
[1724753560940,26.4061,156.1,156.05,6.4081]
[1724753561153,20.0,156.1,156.06,1.28130955]
[1724753561462,31.66721205,156.15,156.06,1.28130955]
[1724753561463,26.406,156.11,156.06,1.28130955]
[1724753562568,20.0,156.11,156.06,7.68900955]
[1724753562865,20.0,156.11,156.07,6.4072]
[1724753563042,20.0,156.11,156.08,1.28116598]
[1724753564458,20.0,156.11,156.04,6.4082]
[1724753564459,26.4061,156.11,156.04,6.4082]
[1724753564639,26.4061,156.11,156.05,1.28128708]
[1724753564968,6.4061,156.1,156.05,7.68938708]
[1724753566162,26.4057,156.11,156.05,7.68938708]
[1724753566766,20.0,156.11,156.06,6.4077]
[1724753566970,20.0,156.11,156.07,7.68845193]
[1724753567261,20.0,156.11,156.08,1.28114938]
[1724753568951,20.0,156.11,156.07,6.4073]
[1724753569262,20.0,156.11,156.08,1.28114764]
[1724753569841,20.0,156.12,156.08,1.28114764]
[1724753570358,16.3319,156.16,156.08,17.29814764]
[1724753571154,6.4044,156.15,156.09,6.4065]
[1724753571361,6.4045,156.14,156.1,1.28094167]
[1724753571665,6.4045,156.14,156.11,1.2809423]
[1724753571874,16.3319,156.16,156.11,1.2809423]
[1724753571875,6.4041,156.15,156.11,1.2809423]
[1724753572644,17.23239366,156.19,156.11,7.6862423]
[1724753572645,6.4033,156.17,156.11,7.6862423]
[1724753573152,6.4037,156.16,156.12,1.28073118]
[1724753573352,6.4033,156.17,156.12,1.28073118]
[1724753573664,20.0,156.16,156.12,1.28073118]
[1724753576956,26.4037,156.16,156.12,1.28073118]
[1724753577251,26.4037,156.16,156.12,7.68603118]
[1724753577252,20.0,156.16,156.12,7.68603118]
[1724753577458,20.0,156.16,156.12,17.79364165]
[1724753577854,20.0,156.16,156.13,6.4049]
[1724753578062,20.0,156.17,156.14,1.28069246]
[1724753578274,20.0,156.17,156.15,1.28064998]
[1724753578470,20.0,156.18,156.15,1.28064998]
[1724753579175,26.4024,156.19,156.15,1.28064998]
[1724753580178,26.4024,156.19,156.14,6.4043]
[1724753580363,6.4021,156.2,156.15,7.68447974]
[1724753580678,20.0,156.19,156.15,7.68447974]
[1724753581668,20.0,156.19,156.15,17.79209021]
[1724753582954,6.4016,156.21,156.16,6.4035]
[1724753583173,20.0,156.2,156.17,1.28037952]
[1724753583378,20.0,156.2,156.18,1.28037277]
[1724753584485,20.0,156.2,156.17,1.2803747]
[1724753584658,20.0,156.2,156.18,1.28037358]
[1724753585555,20.0,156.2,156.17,1.28037125]
[1724753585780,20.0,156.2,156.18,1.2803748]
[1724753586879,20.0,156.2,156.17,17.79108869]
[1724753587083,26.4013,156.22,156.18,1.28036774]
[1724753587660,20.0,156.22,156.18,1.28036774]
[1724753587885,6.4013,156.22,156.18,1.28036774]
[1724753588082,6.4011,156.23,156.18,7.68316774]
[1724753588258,20.0,156.22,156.18,7.68316774]
[1724753588457,6.2972,156.25,156.18,7.68316774]
[1724753588458,6.4007,156.24,156.19,6.4022]
[1724753588657,20.0,156.23,156.2,1.2801712]
[1724753588853,26.4009,156.23,156.2,1.2801712]
[1724753589487,26.4009,156.23,156.18,6.4028]
[1724753590981,26.4009,156.23,156.19,1.28016384]
[1724753591166,6.402,156.2,156.17,0.12549]
[1724753591374,6.4016,156.21,156.16,48.37521047]
[1724753591577,20.0,156.2,156.16,48.37521047]
[1724753592077,20.0,156.2,156.17,1.28035948]
[1724753592285,6.4013,156.22,156.17,7.68355948]
[1724753592464,20.0,156.21,156.17,7.68355948]
[1724753594485,20.0,156.21,156.17,6.4032]
[1724753594954,20.0,156.21,156.18,1.28031104]
[1724753595357,6.4013,156.22,156.18,1.28031104]
[1724753595572,20.0,156.21,156.18,1.28031104]
[1724753597182,6.4013,156.22,156.18,1.28031104]
[1724753607197,0.12549,156.24,156.18,1.28031104]
[1724753607378,6.4017,156.21,156.16,38.2679]
[1724753607689,6.4023,156.2,156.13,16.0117]
[1724753607891,6.4023,156.2,156.15,6.404]
[1724753609080,6.4033,156.17,156.13,16.0117]
[1724753609412,10.10761047,156.17,156.1,22.4208]
[1724753609708,6.4045,156.14,156.09,6.4065]
[1724753610196,16.51171047,156.15,156.09,6.4065]
[1724753610494,6.4041,156.15,156.09,6.4065]
[1724753610998,6.4041,156.15,156.1,6.406]
[1724753611372,6.4041,156.15,156.11,1.28097272]
[1724753612103,6.4045,156.14,156.09,6.4065]
[1724753612470,6.4041,156.15,156.09,6.4065]
[1724753612688,6.4041,156.15,156.1,6.406]
[1724753614696,26.4037,156.16,156.11,6.4053]
[1724753614904,20.0,156.16,156.12,6.4053]